[Event "Early-Titled-Tuesday-Blitz-March-26-2024"]
[Site "Chess.com"]
[Date "2024.03.26"]
[Round "1"]
[White "Bauman_Guy"]
[Black "AwareIdea"]
[Result "1-0"]
[WhiteElo "2919"]
[BlackElo "2510"]
[TimeControl "180+1"]
[EndTime "8:01:36 PDT"]
[Termination "Bauman_Guy won by resignation"]

1. e4 {[%clk 0:03:00.9]} 1... e5 {[%clk 0:02:58.3]} 2. Nf3 {[%clk 0:02:57.5]}
2... Nc6 {[%clk 0:02:58.3]} 3. Bb5 {[%clk 0:02:58.1]} 3... Nf6 {[%clk
0:02:57.3]} 4. O-O {[%clk 0:02:57.8]} 4... Nxe4 {[%clk 0:02:57.5]} 5. Re1 {[%clk
0:02:58.6]} 5... Nd6 {[%clk 0:02:57.2]} 6. a4 {[%clk 0:02:59.3]} 6... Be7 {[%clk
0:02:56.1]} 7. Nc3 {[%clk 0:02:58.3]} 7... O-O {[%clk 0:02:55.8]} 8. d4 {[%clk
0:02:58.5]} 8... Nxd4 {[%clk 0:02:54.2]} 9. Nxd4 {[%clk 0:02:58.1]} 9... exd4
{[%clk 0:02:54.4]} 10. Nd5 {[%clk 0:02:58.6]} 10... Bf6 {[%clk 0:02:46.9]} 11.
Bd3 {[%clk 0:02:56.3]} 11... Re8 {[%clk 0:02:34.2]} 12. Bf4 {[%clk 0:02:53.5]}
12... Rxe1+ {[%clk 0:02:32.5]} 13. Qxe1 {[%clk 0:02:54.4]} 13... Ne8 {[%clk
0:02:32.9]} 14. Qe4 {[%clk 0:02:49.6]} 14... g6 {[%clk 0:02:32.2]} 15. Qxe8+
{[%clk 0:02:46.3]} 1-0

[Event "Early-Titled-Tuesday-Blitz-March-26-2024"]
[Site "Chess.com"]
[Date "2024.03.26"]
[Round "1"]
[White "Oleksandr_Bortnyk"]
[Black "Viktoker"]
[Result "1-0"]
[WhiteElo "3078"]
[BlackElo "2543"]
[TimeControl "180+1"]
[EndTime "8:02:15 PDT"]
[Termination "Oleksandr_Bortnyk won by resignation"]

1. e4 {[%clk 0:03:00.9]} 1... c6 {[%clk 0:02:55.1]} 2. c4 {[%clk 0:02:59.2]}
2... d5 {[%clk 0:02:43.2]} 3. cxd5 {[%clk 0:03:00.1]} 3... cxd5 {[%clk
0:02:41.7]} 4. exd5 {[%clk 0:03:01]} 4... Nf6 {[%clk 0:02:41.1]} 5. Qa4+ {[%clk
0:03:00.5]} 5... Nbd7 {[%clk 0:02:39.9]} 6. Nc3 {[%clk 0:03:00.2]} 6... g6
{[%clk 0:02:39.8]} 7. Bc4 {[%clk 0:03:00.7]} 7... Bg7 {[%clk 0:02:40.2]} 8. d3
{[%clk 0:03:01.4]} 8... O-O {[%clk 0:02:40.4]} 9. Nf3 {[%clk 0:03:01.9]} 9...
Nb6 {[%clk 0:02:40.6]} 10. Qb3 {[%clk 0:03:02.1]} 10... Ne8 {[%clk 0:02:38.5]}
11. O-O {[%clk 0:03:00.1]} 11... Nd6 {[%clk 0:02:38.5]} 12. Bf4 {[%clk
0:02:57.6]} 12... Bf5 {[%clk 0:02:32.7]} 13. Rfe1 {[%clk 0:02:54.3]} 13... Rc8
{[%clk 0:02:31]} 14. Bxd6 {[%clk 0:02:37.1]} 14... Qxd6 {[%clk 0:02:27.2]} 15.
Nb5 {[%clk 0:02:36.9]} 15... Qf4 {[%clk 0:02:17.8]} 16. Nxa7 {[%clk 0:02:31.2]}
16... Nxc4 {[%clk 0:02:13.5]} 17. Nxc8 {[%clk 0:02:31.1]} 17... Nxb2 {[%clk
0:02:06.6]} 18. Nxe7+ {[%clk 0:02:30.4]} 18... Kh8 {[%clk 0:02:06.8]} 19. Nxf5
{[%clk 0:02:30.7]} 1-0

[Event "Early-Titled-Tuesday-Blitz-March-26-2024"]
[Site "Chess.com"]
[Date "2024.03.26"]
[Round "1"]
[White "Zohid6"]
[Black "Joachim100x"]
[Result "1-0"]
[WhiteElo "2928"]
[BlackElo "2514"]
[TimeControl "180+1"]
[EndTime "8:02:46 PDT"]
[Termination "Zohid6 won by resignation"]

1. e4 {[%clk 0:03:00.9]} 1... c5 {[%clk 0:02:59.9]} 2. Nf3 {[%clk 0:03:00.9]}
2... e6 {[%clk 0:03:00.4]} 3. d4 {[%clk 0:03:00.1]} 3... cxd4 {[%clk 0:03:00.4]}
4. Nxd4 {[%clk 0:03:01]} 4... Bc5 {[%clk 0:03:00.7]} 5. Nb3 {[%clk 0:02:59.5]}
5... Bb6 {[%clk 0:03:00.2]} 6. Bd3 {[%clk 0:02:59.6]} 6... Ne7 {[%clk
0:03:00.5]} 7. O-O {[%clk 0:02:59.9]} 7... O-O {[%clk 0:03:00.9]} 8. c4 {[%clk
0:02:59.9]} 8... Nbc6 {[%clk 0:03:01.3]} 9. Nc3 {[%clk 0:02:59.6]} 9... f5
{[%clk 0:03:01.4]} 10. Kh1 {[%clk 0:02:58.3]} 10... f4 {[%clk 0:02:56.9]} 11. f3
{[%clk 0:02:55.5]} 11... Ne5 {[%clk 0:02:57.1]} 12. Be2 {[%clk 0:02:55.7]} 12...
N7g6 {[%clk 0:02:57]} 13. Bd2 {[%clk 0:02:49.1]} 13... Qh4 {[%clk 0:02:56.6]}
14. Be1 {[%clk 0:02:47.1]} 14... Qh5 {[%clk 0:02:54.3]} 15. c5 {[%clk
0:02:38.3]} 15... Bc7 {[%clk 0:02:54]} 16. Nb5 {[%clk 0:02:38.1]} 16... Bb8
{[%clk 0:02:54.2]} 17. Nd6 {[%clk 0:02:36.5]} 17... b6 {[%clk 0:02:41.1]} 18.
Rc1 {[%clk 0:02:36.4]} 18... bxc5 {[%clk 0:02:40.6]} 19. Rxc5 {[%clk 0:02:36.2]}
19... Bxd6 {[%clk 0:02:30]} 20. Qxd6 {[%clk 0:02:35.6]} 20... a5 {[%clk
0:02:05]} 21. Bc3 {[%clk 0:02:28.2]} 21... a4 {[%clk 0:02:03.3]} 22. Nd2 {[%clk
0:02:26.8]} 22... Ra6 {[%clk 0:02:02.9]} 23. Bxa6 {[%clk 0:02:22.4]} 1-0

[Event "Early-Titled-Tuesday-Blitz-March-26-2024"]
[Site "Chess.com"]
[Date "2024.03.26"]
[Round "1"]
[White "hakanazeri2"]
[Black "maurovargas01"]
[Result "1-0"]
[WhiteElo "2561"]
[BlackElo "1844"]
[TimeControl "180+1"]
[EndTime "8:03:12 PDT"]
[Termination "hakanazeri2 won by checkmate"]

1. Nf3 {[%clk 0:02:53.5]} 1... Nc6 {[%clk 0:02:58.5]} 2. d4 {[%clk 0:02:52.7]}
2... d6 {[%clk 0:02:57.1]} 3. e4 {[%clk 0:02:48.4]} 3... e6 {[%clk 0:02:53.8]}
4. Be3 {[%clk 0:02:46.7]} 4... Nf6 {[%clk 0:02:47.6]} 5. Nc3 {[%clk 0:02:46]}
5... e5 {[%clk 0:02:41]} 6. dxe5 {[%clk 0:02:45.1]} 6... dxe5 {[%clk 0:02:40.2]}
7. Qxd8+ {[%clk 0:02:45.9]} 7... Nxd8 {[%clk 0:02:32.5]} 8. Nxe5 {[%clk
0:02:44.3]} 8... Bb4 {[%clk 0:02:29.6]} 9. O-O-O {[%clk 0:02:43]} 9... Bxc3
{[%clk 0:02:18.4]} 10. bxc3 {[%clk 0:02:43.9]} 10... Nxe4 {[%clk 0:02:18.2]} 11.
Rxd8+ {[%clk 0:02:43.1]} 11... Kxd8 {[%clk 0:02:14.8]} 12. Nxf7+ {[%clk
0:02:44]} 12... Ke7 {[%clk 0:02:14.1]} 13. Nxh8 {[%clk 0:02:44.9]} 13... Nxc3
{[%clk 0:02:09.6]} 14. Bc5+ {[%clk 0:02:42.5]} 14... Ke8 {[%clk 0:02:00.9]} 15.
Bb5+ {[%clk 0:02:37.5]} 15... c6 {[%clk 0:01:59.2]} 16. Re1+ {[%clk 0:02:37.2]}
16... Kd8 {[%clk 0:01:53.7]} 17. Nf7+ {[%clk 0:02:26.7]} 17... Kc7 {[%clk
0:01:52.5]} 18. Re7+ {[%clk 0:02:24.6]} 18... Bd7 {[%clk 0:01:51.9]} 19. Bc4
{[%clk 0:02:18.6]} 19... b6 {[%clk 0:01:37.6]} 20. Bd6+ {[%clk 0:02:17.7]} 20...
Kc8 {[%clk 0:01:35.7]} 21. Ba6# {[%clk 0:02:17.1]} 1-0

[Event "Early-Titled-Tuesday-Blitz-March-26-2024"]
[Site "Chess.com"]
[Date "2024.03.26"]
[Round "1"]
[White "Shield12"]
[Black "xakevicius91"]
[Result "1-0"]
[WhiteElo "2991"]
[BlackElo "2529"]
[TimeControl "180+1"]
[EndTime "8:03:19 PDT"]
[Termination "Shield12 won by resignation"]

1. b3 {[%clk 0:03:00.9]} 1... b6 {[%clk 0:02:57.2]} 2. Bb2 {[%clk 0:03:01.8]}
2... Bb7 {[%clk 0:02:57.7]} 3. Nf3 {[%clk 0:03:01.6]} 3... Nf6 {[%clk
0:02:58.1]} 4. g3 {[%clk 0:03:01.8]} 4... e6 {[%clk 0:02:58]} 5. Bg2 {[%clk
0:03:02.3]} 5... Be7 {[%clk 0:02:58.7]} 6. O-O {[%clk 0:03:02.2]} 6... O-O
{[%clk 0:02:59.3]} 7. c4 {[%clk 0:03:02.7]} 7... c5 {[%clk 0:02:59.6]} 8. Nc3
{[%clk 0:03:01.9]} 8... d6 {[%clk 0:02:59.9]} 9. d4 {[%clk 0:03:01.6]} 9... cxd4
{[%clk 0:02:59.3]} 10. Qxd4 {[%clk 0:03:02.5]} 10... a6 {[%clk 0:02:57.4]} 11.
Rfd1 {[%clk 0:03:01.1]} 11... Qc7 {[%clk 0:02:56.9]} 12. Rac1 {[%clk 0:03:00.8]}
12... Nbd7 {[%clk 0:02:57.2]} 13. Qd2 {[%clk 0:02:56.4]} 13... Rfe8 {[%clk
0:02:56.6]} 14. h3 {[%clk 0:02:54.5]} 14... Rad8 {[%clk 0:02:56.4]} 15. Qf4
{[%clk 0:02:53.7]} 15... Qb8 {[%clk 0:02:50]} 16. e4 {[%clk 0:02:53.2]} 16...
Bf8 {[%clk 0:02:45.2]} 17. Re1 {[%clk 0:02:52.6]} 17... Ne5 {[%clk 0:02:43.6]}
18. Rcd1 {[%clk 0:02:51.8]} 18... Nfd7 {[%clk 0:02:40.8]} 19. Qe3 {[%clk
0:02:48.9]} 19... Nxf3+ {[%clk 0:02:40.3]} 20. Bxf3 {[%clk 0:02:48.7]} 20... Qc7
{[%clk 0:02:39.2]} 21. Bg2 {[%clk 0:02:48.9]} 21... Be7 {[%clk 0:02:39.5]} 22.
h4 {[%clk 0:02:48.9]} 22... Ne5 {[%clk 0:02:37.4]} 23. a4 {[%clk 0:02:46.7]}
23... Bf8 {[%clk 0:02:21.6]} 24. Ne2 {[%clk 0:02:46.5]} 24... Nd7 {[%clk
0:02:20.5]} 25. Nf4 {[%clk 0:02:45.5]} 25... Nc5 {[%clk 0:02:02.5]} 26. Nh5
{[%clk 0:02:42.5]} 26... d5 {[%clk 0:01:58.2]} 27. Qg5 {[%clk 0:02:27.4]} 27...
h6 {[%clk 0:01:43]} 28. Nf6+ {[%clk 0:02:27]} 28... Kh8 {[%clk 0:01:37.7]} 29.
Qxh6+ {[%clk 0:02:27.9]} 1-0

[Event "Early-Titled-Tuesday-Blitz-March-26-2024"]
[Site "Chess.com"]
[Date "2024.03.26"]
[Round "1"]
[White "aa175"]
[Black "alekroth65"]
[Result "1-0"]
[WhiteElo "2726"]
[BlackElo "2390"]
[TimeControl "180+1"]
[EndTime "8:03:32 PDT"]
[Termination "aa175 won by checkmate"]

1. d4 {[%clk 0:03:00.9]} 1... d6 {[%clk 0:02:59.3]} 2. Bf4 {[%clk 0:03:01.2]}
2... Nd7 {[%clk 0:02:57.8]} 3. Nf3 {[%clk 0:03:01.7]} 3... g6 {[%clk 0:02:56.6]}
4. e3 {[%clk 0:03:02.1]} 4... Bg7 {[%clk 0:02:57.1]} 5. Bc4 {[%clk 0:03:02.1]}
5... Ngf6 {[%clk 0:02:44.7]} 6. Bxf7+ {[%clk 0:03:01.6]} 6... Kxf7 {[%clk
0:02:42.7]} 7. Ng5+ {[%clk 0:03:02.5]} 7... Kg8 {[%clk 0:02:42.1]} 8. Ne6 {[%clk
0:03:03.4]} 8... Qe8 {[%clk 0:02:40.8]} 9. Nxc7 {[%clk 0:03:04]} 9... Qd8 {[%clk
0:02:40.8]} 10. Nxa8 {[%clk 0:03:04]} 10... b6 {[%clk 0:02:31.6]} 11. Qf3 {[%clk
0:03:03.9]} 11... Ba6 {[%clk 0:02:23.4]} 12. Qc6 {[%clk 0:02:56.4]} 12... h6
{[%clk 0:01:59.9]} 13. Nc7 {[%clk 0:02:55.3]} 13... Qc8 {[%clk 0:01:58.7]} 14.
Nd5 {[%clk 0:02:48.1]} 14... Nxd5 {[%clk 0:01:32.9]} 15. Qxd5+ {[%clk 0:02:49]}
15... Kh7 {[%clk 0:01:32.3]} 16. Nc3 {[%clk 0:02:46.7]} 16... Bb7 {[%clk
0:01:30.1]} 17. Qe6 {[%clk 0:02:38.4]} 17... Rf8 {[%clk 0:01:18.4]} 18. Qxe7
{[%clk 0:02:30.9]} 18... Bxg2 {[%clk 0:01:08.4]} 19. Rg1 {[%clk 0:02:29.9]}
19... Bh3 {[%clk 0:01:08.8]} 20. Bxh6 {[%clk 0:02:25.1]} 20... Qd8 {[%clk
0:00:56.8]} 21. Qxg7# {[%clk 0:02:24.7]} 1-0

[Event "Early-Titled-Tuesday-Blitz-March-26-2024"]
[Site "Chess.com"]
[Date "2024.03.26"]
[Round "1"]
[White "cristiano78"]
[Black "SlavenPastar"]
[Result "0-1"]
[WhiteElo "2228"]
[BlackElo "2608"]
[TimeControl "180+1"]
[EndTime "8:03:52 PDT"]
[Termination "SlavenPastar won by resignation"]

1. d4 {[%clk 0:03:00.9]} 1... b6 {[%clk 0:03:00.6]} 2. c4 {[%clk 0:02:59.6]}
2... Bb7 {[%clk 0:03:00.7]} 3. Nc3 {[%clk 0:02:59.7]} 3... g6 {[%clk 0:03:01]}
4. Nf3 {[%clk 0:02:58.5]} 4... Nf6 {[%clk 0:03:00]} 5. g3 {[%clk 0:02:58.4]}
5... Bg7 {[%clk 0:03:00.1]} 6. Bg2 {[%clk 0:02:58.5]} 6... Ne4 {[%clk
0:02:59.9]} 7. Qc2 {[%clk 0:02:57.3]} 7... Nxc3 {[%clk 0:02:59.8]} 8. Qxc3
{[%clk 0:02:57.5]} 8... c5 {[%clk 0:02:58.5]} 9. Be3 {[%clk 0:02:57.1]} 9... O-O
{[%clk 0:02:58.1]} 10. O-O {[%clk 0:02:56.8]} 10... Nc6 {[%clk 0:02:58.7]} 11.
Rfd1 {[%clk 0:02:53]} 11... d6 {[%clk 0:02:44]} 12. a3 {[%clk 0:02:48.7]} 12...
Qc7 {[%clk 0:02:42.7]} 13. Qd3 {[%clk 0:02:47]} 13... cxd4 {[%clk 0:02:41]} 14.
Nxd4 {[%clk 0:02:46.7]} 14... Ne5 {[%clk 0:02:40.9]} 15. Qc2 {[%clk 0:02:44.5]}
15... Bxg2 {[%clk 0:02:39.3]} 16. Kxg2 {[%clk 0:02:44.4]} 16... Qxc4 {[%clk
0:02:39.3]} 17. Qxc4 {[%clk 0:02:42.9]} 17... Nxc4 {[%clk 0:02:40.2]} 18. b3
{[%clk 0:02:36.7]} 18... Nxe3+ {[%clk 0:02:37.4]} 19. fxe3 {[%clk 0:02:36.8]}
19... Rfc8 {[%clk 0:02:37.8]} 20. Rac1 {[%clk 0:02:36.8]} 20... Kf8 {[%clk
0:02:35.4]} 21. b4 {[%clk 0:02:34.2]} 21... a6 {[%clk 0:02:31]} 22. Kf3 {[%clk
0:02:31.3]} 22... Ke8 {[%clk 0:02:31]} 23. Ke4 {[%clk 0:02:31.1]} 23... Kd7
{[%clk 0:02:30.3]} 24. Kd3 {[%clk 0:02:31.1]} 24... Rxc1 {[%clk 0:02:22.5]} 25.
Rxc1 {[%clk 0:02:31]} 25... Rc8 {[%clk 0:02:23]} 26. Rxc8 {[%clk 0:02:30.5]}
26... Kxc8 {[%clk 0:02:23.9]} 27. a4 {[%clk 0:02:30.5]} 27... Bxd4 {[%clk
0:02:17.6]} 28. exd4 {[%clk 0:02:30.5]} 28... d5 {[%clk 0:02:16.5]} 29. e4
{[%clk 0:02:29.4]} 29... dxe4+ {[%clk 0:02:15.9]} 30. Kxe4 {[%clk 0:02:30.2]}
30... Kd7 {[%clk 0:02:15.5]} 31. Kd5 {[%clk 0:02:29.4]} 31... f6 {[%clk
0:02:10.8]} 32. b5 {[%clk 0:02:25.7]} 32... e6+ {[%clk 0:02:09.9]} 33. Ke4
{[%clk 0:02:21.4]} 33... axb5 {[%clk 0:02:09.3]} 34. axb5 {[%clk 0:02:20.4]}
34... Kd6 {[%clk 0:02:09.9]} 35. g4 {[%clk 0:02:10.8]} 35... h5 {[%clk
0:02:03.9]} 36. h3 {[%clk 0:02:07.1]} 36... hxg4 {[%clk 0:02:03.4]} 37. hxg4
{[%clk 0:02:06.4]} 37... f5+ {[%clk 0:02:00.3]} 38. gxf5 {[%clk 0:02:05.7]}
38... exf5+ {[%clk 0:01:58.4]} 39. Kf4 {[%clk 0:01:59.3]} 39... Kd5 {[%clk
0:01:58.4]} 0-1

[Event "Early-Titled-Tuesday-Blitz-March-26-2024"]
[Site "Chess.com"]
[Date "2024.03.26"]
[Round "1"]
[White "Sina_Movahed"]
[Black "chess123456s"]
[Result "1-0"]
[WhiteElo "3092"]
[BlackElo "2550"]
[TimeControl "180+1"]
[EndTime "8:03:58 PDT"]
[Termination "Sina_Movahed won by resignation"]

1. Nf3 {[%clk 0:03:00.9]} 1... d5 {[%clk 0:02:59.8]} 2. c4 {[%clk 0:03:00.6]}
2... d4 {[%clk 0:02:58.6]} 3. b4 {[%clk 0:03:01.2]} 3... Bg4 {[%clk 0:02:58]} 4.
Bb2 {[%clk 0:02:52.2]} 4... Bxf3 {[%clk 0:02:57.2]} 5. gxf3 {[%clk 0:02:53.1]}
5... e5 {[%clk 0:02:57.3]} 6. a3 {[%clk 0:02:49.2]} 6... a5 {[%clk 0:02:56.8]}
7. b5 {[%clk 0:02:48.9]} 7... Nd7 {[%clk 0:02:56]} 8. f4 {[%clk 0:02:47.3]} 8...
Bc5 {[%clk 0:02:49.6]} 9. Bg2 {[%clk 0:02:40]} 9... Ngf6 {[%clk 0:02:43.9]} 10.
d3 {[%clk 0:02:37.3]} 10... O-O {[%clk 0:02:41.1]} 11. f5 {[%clk 0:02:32.8]}
11... Qc8 {[%clk 0:02:22.1]} 12. Nd2 {[%clk 0:02:26.7]} 12... Nb6 {[%clk
0:02:20.3]} 13. Ne4 {[%clk 0:02:26.8]} 13... Be7 {[%clk 0:02:19]} 14. Ng3 {[%clk
0:02:13.8]} 14... Bc5 {[%clk 0:02:04.9]} 15. Bc1 {[%clk 0:02:10.9]} 15... h6
{[%clk 0:02:01]} 16. Rg1 {[%clk 0:02:07.2]} 16... Re8 {[%clk 0:01:59.3]} 17. Ne4
{[%clk 0:02:04.2]} 17... Be7 {[%clk 0:01:46.6]} 18. Bxh6 {[%clk 0:01:57.1]}
18... gxh6 {[%clk 0:01:40.4]} 19. Nxf6+ {[%clk 0:01:57]} 19... Kh8 {[%clk
0:01:29.1]} 20. Qd2 {[%clk 0:01:52.2]} 20... Bf8 {[%clk 0:01:13.5]} 21. Bxb7
{[%clk 0:01:51.2]} 1-0

[Event "Early-Titled-Tuesday-Blitz-March-26-2024"]
[Site "Chess.com"]
[Date "2024.03.26"]
[Round "1"]
[White "Cheer_Down"]
[Black "moro182"]
[Result "0-1"]
[WhiteElo "2486"]
[BlackElo "2883"]
[TimeControl "180+1"]
[EndTime "8:04:07 PDT"]
[Termination "moro182 won by resignation"]

1. e4 {[%clk 0:02:34.7]} 1... g6 {[%clk 0:03:00.9]} 2. d4 {[%clk 0:02:34.3]}
2... Bg7 {[%clk 0:03:00.2]} 3. Nc3 {[%clk 0:02:33.4]} 3... a6 {[%clk 0:03:00.4]}
4. a4 {[%clk 0:02:32.5]} 4... d6 {[%clk 0:03:00.2]} 5. Nf3 {[%clk 0:02:31.3]}
5... Nf6 {[%clk 0:03:00.6]} 6. Bc4 {[%clk 0:02:30.4]} 6... O-O {[%clk
0:03:00.6]} 7. O-O {[%clk 0:02:25.9]} 7... Nxe4 {[%clk 0:03:00.2]} 8. Bxf7+
{[%clk 0:02:24.7]} 8... Rxf7 {[%clk 0:03:01.1]} 9. Nxe4 {[%clk 0:02:25.1]} 9...
Nc6 {[%clk 0:03:00.2]} 10. c3 {[%clk 0:02:24.9]} 10... e5 {[%clk 0:02:58.5]} 11.
Neg5 {[%clk 0:02:20.4]} 11... Rf5 {[%clk 0:02:47.3]} 12. Qb3+ {[%clk 0:02:10.3]}
12... d5 {[%clk 0:02:47.5]} 13. dxe5 {[%clk 0:01:55.9]} 13... Nxe5 {[%clk
0:02:48.4]} 14. Nxe5 {[%clk 0:01:50.5]} 14... Rxe5 {[%clk 0:02:48.9]} 15. Nf3
{[%clk 0:01:47.4]} 15... Re4 {[%clk 0:02:43.5]} 16. Rd1 {[%clk 0:01:45.9]} 16...
c6 {[%clk 0:02:42.6]} 17. Ng5 {[%clk 0:01:44.2]} 17... Re2 {[%clk 0:02:34.8]}
18. c4 {[%clk 0:01:39.7]} 18... Qe7 {[%clk 0:02:21.7]} 19. Bf4 {[%clk
0:01:23.4]} 19... h6 {[%clk 0:02:14.2]} 20. cxd5 {[%clk 0:01:00.3]} 20... hxg5
{[%clk 0:02:12.9]} 21. d6+ {[%clk 0:00:59.3]} 21... Qe6 {[%clk 0:02:12.8]} 0-1

[Event "Early-Titled-Tuesday-Blitz-March-26-2024"]
[Site "Chess.com"]
[Date "2024.03.26"]
[Round "1"]
[White "manitodeplomo"]
[Black "InitiatingASC"]
[Result "1-0"]
[WhiteElo "2675"]
[BlackElo "2339"]
[TimeControl "180+1"]
[EndTime "8:04:07 PDT"]
[Termination "manitodeplomo won by checkmate"]

1. d4 {[%clk 0:02:51.7]} 1... d5 {[%clk 0:00:41.4]} 2. c4 {[%clk 0:02:49.5]}
2... e6 {[%clk 0:00:41.1]} 3. Nf3 {[%clk 0:02:49.9]} 3... Nf6 {[%clk 0:00:40.6]}
4. Nc3 {[%clk 0:02:50.2]} 4... c5 {[%clk 0:00:40.7]} 5. Bg5 {[%clk 0:02:49.7]}
5... Nc6 {[%clk 0:00:40.5]} 6. e3 {[%clk 0:02:48.8]} 6... cxd4 {[%clk
0:00:37.7]} 7. exd4 {[%clk 0:02:48]} 7... dxc4 {[%clk 0:00:37.6]} 8. Bxc4 {[%clk
0:02:46.9]} 8... Be7 {[%clk 0:00:34.5]} 9. O-O {[%clk 0:02:46]} 9... O-O {[%clk
0:00:34.1]} 10. a3 {[%clk 0:02:46.2]} 10... b6 {[%clk 0:00:30.9]} 11. d5 {[%clk
0:02:39.5]} 11... exd5 {[%clk 0:00:30.5]} 12. Nxd5 {[%clk 0:02:39.5]} 12... Nxd5
{[%clk 0:00:27.6]} 13. Qxd5 {[%clk 0:02:39.6]} 13... Qc7 {[%clk 0:00:20.4]} 14.
Rac1 {[%clk 0:02:31.8]} 14... Be6 {[%clk 0:00:19.6]} 15. Qe4 {[%clk 0:02:31.8]}
15... Bxg5 {[%clk 0:00:13.8]} 16. Nxg5 {[%clk 0:02:30]} 16... Bd7 {[%clk
0:00:11.4]} 17. Qxh7# {[%clk 0:02:29.2]} 1-0

[Event "Early-Titled-Tuesday-Blitz-March-26-2024"]
[Site "Chess.com"]
[Date "2024.03.26"]
[Round "1"]
[White "ChessQueen"]
[Black "amylazy"]
[Result "1-0"]
[WhiteElo "2757"]
[BlackElo "2415"]
[TimeControl "180+1"]
[EndTime "8:04:23 PDT"]
[Termination "ChessQueen won by checkmate"]

1. Nf3 {[%clk 0:03:00.9]} 1... Nf6 {[%clk 0:02:59.1]} 2. g3 {[%clk 0:03:01.1]}
2... g6 {[%clk 0:02:59.1]} 3. Bg2 {[%clk 0:03:01.7]} 3... Bg7 {[%clk 0:02:59.7]}
4. c4 {[%clk 0:03:01.8]} 4... O-O {[%clk 0:03:00.4]} 5. O-O {[%clk 0:03:02.1]}
5... d5 {[%clk 0:03:01.1]} 6. cxd5 {[%clk 0:03:01.6]} 6... Nxd5 {[%clk
0:03:01.3]} 7. Nc3 {[%clk 0:03:01.5]} 7... Nb6 {[%clk 0:03:01.9]} 8. d4 {[%clk
0:03:00.5]} 8... Nc6 {[%clk 0:03:02.6]} 9. d5 {[%clk 0:02:57]} 9... Na5 {[%clk
0:03:01.8]} 10. Nd4 {[%clk 0:02:54.2]} 10... c6 {[%clk 0:02:59.2]} 11. e4 {[%clk
0:02:50.6]} 11... cxd5 {[%clk 0:02:59.3]} 12. exd5 {[%clk 0:02:49.9]} 12... Bd7
{[%clk 0:02:51.3]} 13. Bg5 {[%clk 0:02:47.3]} 13... h6 {[%clk 0:02:49.5]} 14.
Bf4 {[%clk 0:02:44.3]} 14... Rc8 {[%clk 0:02:45.5]} 15. Nde2 {[%clk 0:02:23.5]}
15... Nac4 {[%clk 0:02:43.8]} 16. Qc1 {[%clk 0:02:21.5]} 16... Kh7 {[%clk
0:02:38.7]} 17. h4 {[%clk 0:02:21.1]} 17... h5 {[%clk 0:02:34.3]} 18. Rd1 {[%clk
0:02:20.2]} 18... Bg4 {[%clk 0:02:34]} 19. f3 {[%clk 0:02:17.7]} 19... Bf5
{[%clk 0:02:33.2]} 20. Kh2 {[%clk 0:02:16.1]} 20... Nxb2 {[%clk 0:02:22.5]} 21.
Qxb2 {[%clk 0:02:14.6]} 21... Na4 {[%clk 0:02:22.7]} 22. Qxb7 {[%clk 0:02:14.5]}
22... Nxc3 {[%clk 0:02:20.7]} 23. Nxc3 {[%clk 0:02:14]} 23... Rxc3 {[%clk
0:02:18.4]} 24. Rac1 {[%clk 0:02:12]} 24... Ra3 {[%clk 0:02:07.7]} 25. d6 {[%clk
0:02:03.8]} 25... e5 {[%clk 0:02:04.7]} 26. Bg5 {[%clk 0:02:02]} 26... Qa5
{[%clk 0:02:02.4]} 27. d7 {[%clk 0:01:58.9]} 27... f6 {[%clk 0:01:33.6]} 28.
Bxf6 {[%clk 0:01:58.5]} 28... Rxf6 {[%clk 0:01:17.2]} 29. d8=Q {[%clk
0:01:56.7]} 29... Rb6 {[%clk 0:01:15.5]} 30. Qxg7+ {[%clk 0:01:52.8]} 30... Kxg7
{[%clk 0:01:12.3]} 31. Rc7+ {[%clk 0:01:52.8]} 31... Kh6 {[%clk 0:01:11.3]} 32.
Qh8# {[%clk 0:01:52.4]} 1-0

[Event "Early-Titled-Tuesday-Blitz-March-26-2024"]
[Site "Chess.com"]
[Date "2024.03.26"]
[Round "1"]
[White "Cobysters"]
[Black "GMT4114"]
[Result "1-0"]
[WhiteElo "2566"]
[BlackElo "1974"]
[TimeControl "180+1"]
[EndTime "8:04:27 PDT"]
[Termination "Cobysters won by checkmate"]

1. c4 {[%clk 0:02:58.1]} 1... f5 {[%clk 0:02:59.4]} 2. Nc3 {[%clk 0:02:58.1]}
2... Nf6 {[%clk 0:02:59.5]} 3. g3 {[%clk 0:02:58.4]} 3... d6 {[%clk 0:02:59.9]}
4. Bg2 {[%clk 0:02:58.9]} 4... e5 {[%clk 0:03:00.2]} 5. e3 {[%clk 0:02:59.5]}
5... Be7 {[%clk 0:03:00.4]} 6. Nge2 {[%clk 0:03:00.1]} 6... O-O {[%clk
0:03:00.4]} 7. d4 {[%clk 0:03:00.7]} 7... Nc6 {[%clk 0:02:56.1]} 8. d5 {[%clk
0:02:58.5]} 8... Nb8 {[%clk 0:02:54.1]} 9. b4 {[%clk 0:02:58.6]} 9... a5 {[%clk
0:02:53.4]} 10. bxa5 {[%clk 0:02:57.3]} 10... Rxa5 {[%clk 0:02:50.5]} 11. a4
{[%clk 0:02:57.5]} 11... Nbd7 {[%clk 0:02:50.3]} 12. Ba3 {[%clk 0:02:57.8]}
12... Nc5 {[%clk 0:02:39.4]} 13. Bb4 {[%clk 0:02:56]} 13... Ra8 {[%clk
0:02:34.4]} 14. Bxc5 {[%clk 0:02:55.5]} 14... dxc5 {[%clk 0:02:35.3]} 15. a5
{[%clk 0:02:55.7]} 15... Bd6 {[%clk 0:02:29.4]} 16. O-O {[%clk 0:02:55.1]} 16...
Bd7 {[%clk 0:02:27.5]} 17. Qb1 {[%clk 0:02:54.1]} 17... Qc8 {[%clk 0:02:13.5]}
18. Nb5 {[%clk 0:02:52]} 18... Ra6 {[%clk 0:02:09.6]} 19. Nec3 {[%clk
0:02:50.9]} 19... Qa8 {[%clk 0:02:00]} 20. Nxd6 {[%clk 0:02:48.3]} 20... cxd6
{[%clk 0:01:59.2]} 21. Nb5 {[%clk 0:02:47.9]} 21... Rc8 {[%clk 0:01:42.3]} 22.
Bh3 {[%clk 0:02:31.6]} 22... g6 {[%clk 0:01:40.8]} 23. Qb2 {[%clk 0:02:22.9]}
23... Ne8 {[%clk 0:01:31.8]} 24. Qc3 {[%clk 0:02:20.2]} 24... Kf7 {[%clk
0:01:26.4]} 25. e4 {[%clk 0:02:20.3]} 25... Ke7 {[%clk 0:01:22.4]} 26. f4 {[%clk
0:02:19.8]} 26... exf4 {[%clk 0:01:10.7]} 27. e5 {[%clk 0:02:14.7]} 27... fxg3
{[%clk 0:01:00.8]} 28. exd6+ {[%clk 0:02:14.6]} 28... Nxd6 {[%clk 0:00:59.3]}
29. Qe5+ {[%clk 0:02:14.1]} 29... Kd8 {[%clk 0:00:56.2]} 30. Nxd6 {[%clk
0:02:14.1]} 30... gxh2+ {[%clk 0:00:41.8]} 31. Kh1 {[%clk 0:02:13]} 31... Rxa5
{[%clk 0:00:41]} 32. Nf7# {[%clk 0:02:12.4]} 1-0